[Event "*** Titled Tuesday Blitz"]
[Site "Chess.com"]
[Date "2018.08.07"]
[Round "10"]
[White "GadimbayliA"]
[Black "Annawel"]
[Result "1-0"]
[WhiteElo "2729"]
[BlackElo "2791"]
[TimeControl "180+2"]
[EndTime "15:22:22 PDT"]
[Termination "GadimbayliA won by checkmate"]

1. e4 {[%clk 0:03:01.9]} 1... c5 {[%clk 0:03:01.2]} 2. Nf3 {[%clk 0:03:02.4]}
2... d6 {[%clk 0:03:02.6]} 3. d4 {[%clk 0:03:00.2]} 3... cxd4 {[%clk 0:03:04.5]}
4. Nxd4 {[%clk 0:03:02.1]} 4... Nf6 {[%clk 0:03:05.8]} 5. Nc3 {[%clk 0:03:02.6]}
5... a6 {[%clk 0:03:06.9]} 6. g3 {[%clk 0:03:02.3]} 6... e5 {[%clk 0:03:07.7]}
7. Nf3 {[%clk 0:03:02.1]} 7... b5 {[%clk 0:03:08]} 8. Bg2 {[%clk 0:02:54.3]}
8... Bb7 {[%clk 0:03:08.6]} 9. O-O {[%clk 0:02:46.6]} 9... Nbd7 {[%clk
0:03:09.4]} 10. Nh4 {[%clk 0:02:45.5]} 10... g6 {[%clk 0:03:10.2]} 11. a3 {[%clk
0:02:39.4]} 11... Rc8 {[%clk 0:03:11.4]} 12. Re1 {[%clk 0:02:36.5]} 12... Nc5
{[%clk 0:03:07]} 13. Bg5 {[%clk 0:02:16.6]} 13... Bg7 {[%clk 0:03:03.2]} 14. Qd2
{[%clk 0:02:07]} 14... h6 {[%clk 0:02:58.2]} 15. Bxf6 {[%clk 0:02:01.6]} 15...
Bxf6 {[%clk 0:03:00.1]} 16. Nf3 {[%clk 0:01:59.8]} 16... Bg7 {[%clk 0:02:44.6]}
17. Rad1 {[%clk 0:01:55.8]} 17... Rc6 {[%clk 0:02:45.8]} 18. Nd5 {[%clk
0:01:42.3]} 18... O-O {[%clk 0:02:46.7]} 19. h4 {[%clk 0:01:42.8]} 19... h5
{[%clk 0:02:34.5]} 20. Ng5 {[%clk 0:01:31.8]} 20... Ne6 {[%clk 0:02:31.9]} 21.
c3 {[%clk 0:01:27.9]} 21... Bc8 {[%clk 0:02:25.2]} 22. Rf1 {[%clk 0:01:16.5]}
22... f6 {[%clk 0:02:16.2]} 23. Nf3 {[%clk 0:00:55]} 23... a5 {[%clk 0:02:11.3]}
24. Ne1 {[%clk 0:00:53]} 24... Nc7 {[%clk 0:02:06.1]} 25. Nc2 {[%clk 0:00:46.6]}
25... Kh7 {[%clk 0:02:01]} 26. Nce3 {[%clk 0:00:40.5]} 26... Bh6 {[%clk
0:02:02]} 27. Qd3 {[%clk 0:00:38.5]} 27... Ba6 {[%clk 0:01:55.8]} 28. b4 {[%clk
0:00:38.3]} 28... Qd7 {[%clk 0:01:47.3]} 29. f4 {[%clk 0:00:34.6]} 29... Nxd5
{[%clk 0:01:47.5]} 30. Nxd5 {[%clk 0:00:33.9]} 30... exf4 {[%clk 0:01:36.3]} 31.
gxf4 {[%clk 0:00:35.8]} 31... Qg7 {[%clk 0:01:29.8]} 32. Bh3 {[%clk 0:00:30.9]}
32... Rc4 {[%clk 0:01:22.1]} 33. Ne3 {[%clk 0:00:28.4]} 33... Rc6 {[%clk
0:01:18.9]} 34. Bg2 {[%clk 0:00:29.2]} 34... Rfc8 {[%clk 0:01:15]} 35. Nd5
{[%clk 0:00:27.3]} 35... Rc4 {[%clk 0:01:04.8]} 36. Nb6 {[%clk 0:00:20.3]} 36...
Rxc3 {[%clk 0:01:05]} 37. Qxd6 {[%clk 0:00:21.2]} 37... R8c7 {[%clk 0:00:53.6]}
38. Nd5 {[%clk 0:00:20.1]} 38... R3c6 {[%clk 0:00:55.2]} 39. Qd8 {[%clk
0:00:18.5]} 39... Ra7 {[%clk 0:00:52.8]} 40. Qe8 {[%clk 0:00:16.4]} 40... Rc8
{[%clk 0:00:41.7]} 41. Qe6 {[%clk 0:00:17.4]} 41... Rf8 {[%clk 0:00:43.2]} 42.
Rc1 {[%clk 0:00:14.4]} 42... axb4 {[%clk 0:00:44.6]} 43. axb4 {[%clk 0:00:14.7]}
43... Qf7 {[%clk 0:00:37.7]} 44. Qb6 {[%clk 0:00:13.7]} 44... Bg7 {[%clk
0:00:33.9]} 45. e5 {[%clk 0:00:12.5]} 45... Bc8 {[%clk 0:00:13.5]} 46. Rxc8
{[%clk 0:00:13.4]} 46... Rxc8 {[%clk 0:00:14.1]} 47. e6 {[%clk 0:00:12.5]} 47...
Qe8 {[%clk 0:00:13.2]} 48. Qxa7 {[%clk 0:00:11.9]} 48... Qxe6 {[%clk 0:00:14.9]}
49. f5 {[%clk 0:00:09.4]} 49... gxf5 {[%clk 0:00:13.8]} 50. Nf4 {[%clk
0:00:10.9]} 50... Qd6 {[%clk 0:00:13.2]} 51. Qf7 {[%clk 0:00:10]} 51... Rc7
{[%clk 0:00:13.2]} 52. Qxh5+ {[%clk 0:00:09.2]} 52... Kg8 {[%clk 0:00:14.6]} 53.
Bd5+ {[%clk 0:00:07.9]} 53... Kf8 {[%clk 0:00:16.2]} 54. Ne6+ {[%clk 0:00:06.3]}
54... Ke7 {[%clk 0:00:15.6]} 55. Nxc7 {[%clk 0:00:07.9]} 55... Qg3+ {[%clk
0:00:16.8]} 56. Bg2 {[%clk 0:00:09]} 56... Qxc7 {[%clk 0:00:18.2]} 57. Qe2+
{[%clk 0:00:09.5]} 57... Kf8 {[%clk 0:00:19.2]} 58. Re1 {[%clk 0:00:11.3]} 58...
Kg8 {[%clk 0:00:17.2]} 59. Qe8+ {[%clk 0:00:11.2]} 59... Bf8 {[%clk 0:00:18]}
60. Qg6+ {[%clk 0:00:12.3]} 60... Kh8 {[%clk 0:00:18.2]} 61. Qh5+ {[%clk
0:00:13.7]} 61... Kg7 {[%clk 0:00:18.9]} 62. Qxf5 {[%clk 0:00:14.9]} 62... Bxb4
{[%clk 0:00:19]} 63. Qg4+ {[%clk 0:00:15.9]} 63... Kh6 {[%clk 0:00:20.5]} 64.
Qxb4 {[%clk 0:00:16.6]} 64... Qb6+ {[%clk 0:00:21.9]} 65. Kh1 {[%clk 0:00:17.7]}
65... Qf2 {[%clk 0:00:23.2]} 66. Rf1 {[%clk 0:00:17.2]} 66... Qb6 {[%clk
0:00:21.3]} 67. Qf4+ {[%clk 0:00:18.6]} 67... Kh5 {[%clk 0:00:22.8]} 68. Qf5+
{[%clk 0:00:19.2]} 68... Kxh4 {[%clk 0:00:22.6]} 69. Rf4+ {[%clk 0:00:19.5]}
69... Kg3 {[%clk 0:00:23.9]} 70. Qg4# {[%clk 0:00:20.8]} 1-0

[Event "*** Titled Tuesday Blitz"]
[Site "Chess.com"]
[Date "2018.08.07"]
[Round "10"]
[White "Angry_Twin"]
[Black "platy3"]
[Result "1/2-1/2"]
[WhiteElo "2654"]
[BlackElo "2757"]
[TimeControl "180+2"]
[EndTime "15:22:23 PDT"]
[Termination "Game drawn by stalemate"]

1. e4 {[%clk 0:03:00.4]} 1... c5 {[%clk 0:03:00.8]} 2. Nf3 {[%clk 0:03:01.4]}
2... e6 {[%clk 0:03:01.6]} 3. d4 {[%clk 0:03:02.4]} 3... cxd4 {[%clk 0:03:03]}
4. Nxd4 {[%clk 0:03:04.3]} 4... Nc6 {[%clk 0:03:04.3]} 5. Nc3 {[%clk 0:03:05.4]}
5... Qc7 {[%clk 0:03:05.8]} 6. Be3 {[%clk 0:03:05.4]} 6... a6 {[%clk 0:03:07.2]}
7. Qf3 {[%clk 0:03:06.5]} 7... Nf6 {[%clk 0:03:08.1]} 8. O-O-O {[%clk
0:03:07.5]} 8... Ne5 {[%clk 0:03:01.9]} 9. Qg3 {[%clk 0:03:08.3]} 9... b5 {[%clk
0:03:01.3]} 10. f4 {[%clk 0:03:01.8]} 10... Neg4 {[%clk 0:03:02.4]} 11. Bg1
{[%clk 0:03:01.7]} 11... h5 {[%clk 0:03:02.9]} 12. e5 {[%clk 0:02:56.8]} 12...
b4 {[%clk 0:03:01]} 13. Na4 {[%clk 0:02:58]} 13... Nd5 {[%clk 0:03:01.5]} 14. h3
{[%clk 0:02:56]} 14... Nh6 {[%clk 0:03:01.5]} 15. Bd3 {[%clk 0:02:55.8]} 15...
Bb7 {[%clk 0:02:55.4]} 16. Be4 {[%clk 0:02:54.5]} 16... Rc8 {[%clk 0:02:44.7]}
17. f5 {[%clk 0:02:50.8]} 17... Be7 {[%clk 0:02:37.8]} 18. Kb1 {[%clk
0:02:44.8]} 18... Nc3+ {[%clk 0:02:10]} 19. bxc3 {[%clk 0:02:04.9]} 19... Bxe4
{[%clk 0:02:10.2]} 20. Qxg7 {[%clk 0:02:05.5]} 20... Rg8 {[%clk 0:02:09.3]} 21.
Qxh6 {[%clk 0:02:06.2]} 21... bxc3 {[%clk 0:02:09.1]} 22. Qe3 {[%clk 0:01:51.8]}
22... exf5 {[%clk 0:01:44.9]} 23. Rh2 {[%clk 0:01:42.8]} 23... Qc4 {[%clk
0:01:29.8]} 24. Nb6 {[%clk 0:01:37.1]} 24... Rb8 {[%clk 0:01:23.5]} 25. Nb3
{[%clk 0:01:37.6]} 25... Qb4 {[%clk 0:01:10.6]} 26. Rxd7 {[%clk 0:01:11.6]}
26... Rxb6 {[%clk 0:00:28.3]} 27. Rxe7+ {[%clk 0:01:12]} 27... Kxe7 {[%clk
0:00:29.6]} 28. Qxb6 {[%clk 0:01:13.4]} 28... Qxb6 {[%clk 0:00:30.9]} 29. Bxb6
{[%clk 0:01:13.7]} 29... Bxg2 {[%clk 0:00:32.4]} 30. Bd4 {[%clk 0:01:03.8]}
30... f4 {[%clk 0:00:32.8]} 31. Bxc3 {[%clk 0:01:05.1]} 31... f3 {[%clk
0:00:33.7]} 32. Bd4 {[%clk 0:01:06.5]} 32... Rd8 {[%clk 0:00:33.8]} 33. Kb2
{[%clk 0:00:56.4]} 33... Ke6 {[%clk 0:00:32.9]} 34. Kc3 {[%clk 0:00:54.6]} 34...
Kf5 {[%clk 0:00:31.7]} 35. Nd2 {[%clk 0:00:54.3]} 35... Kf4 {[%clk 0:00:29.6]}
36. Bf2 {[%clk 0:00:46.6]} 36... Kxe5 {[%clk 0:00:27.4]} 37. a4 {[%clk
0:00:44.5]} 37... f5 {[%clk 0:00:27.6]} 38. a5 {[%clk 0:00:43.2]} 38... Rc8+
{[%clk 0:00:27.9]} 39. Kd3 {[%clk 0:00:40.9]} 39... Rd8+ {[%clk 0:00:29.2]} 40.
Kc3 {[%clk 0:00:42.1]} 40... Rc8+ {[%clk 0:00:29.9]} 41. Kb2 {[%clk 0:00:40.5]}
41... Kf4 {[%clk 0:00:28.1]} 42. c4 {[%clk 0:00:33.3]} 42... Re8 {[%clk
0:00:28.5]} 43. Kc3 {[%clk 0:00:23.3]} 43... Re2 {[%clk 0:00:29.1]} 44. Bh4
{[%clk 0:00:24.6]} 44... Ke3 {[%clk 0:00:19.8]} 45. Nxf3 {[%clk 0:00:06.3]}
45... Kxf3 {[%clk 0:00:20.1]} 46. c5 {[%clk 0:00:07.8]} 46... Re4 {[%clk
0:00:16.7]} 47. Bd8 {[%clk 0:00:04.3]} 47... Kg3 {[%clk 0:00:14.8]} 48. c6
{[%clk 0:00:02.7]} 48... Re6 {[%clk 0:00:12.3]} 49. Bc7+ {[%clk 0:00:04.1]}
49... Kf3 {[%clk 0:00:12.4]} 50. Kd4 {[%clk 0:00:04.2]} 50... Rxc6 {[%clk
0:00:13.4]} 51. Be5 {[%clk 0:00:05.5]} 51... Re6 {[%clk 0:00:10.6]} 52. Kd5
{[%clk 0:00:06.1]} 52... Rxe5+ {[%clk 0:00:06.8]} 53. Kxe5 {[%clk 0:00:08]}
53... Kg3 {[%clk 0:00:07.9]} 54. Rxg2+ {[%clk 0:00:07.7]} 54... Kxg2 {[%clk
0:00:09.1]} 55. Kxf5 {[%clk 0:00:09.2]} 55... Kxh3 {[%clk 0:00:10.1]} 56. Kf4
{[%clk 0:00:10.7]} 56... Kh4 {[%clk 0:00:07.1]} 57. Kf3 {[%clk 0:00:10.9]} 57...
Kg5 {[%clk 0:00:08.4]} 58. Kg3 {[%clk 0:00:12.4]} 58... Kf5 {[%clk 0:00:05.7]}
59. Kh4 {[%clk 0:00:14.3]} 59... Ke5 {[%clk 0:00:06.7]} 60. Kxh5 {[%clk
0:00:16.2]} 60... Kd5 {[%clk 0:00:08.2]} 61. Kg4 {[%clk 0:00:18.1]} 61... Kc5
{[%clk 0:00:09.9]} 62. Kf3 {[%clk 0:00:20]} 62... Kb5 {[%clk 0:00:11.7]} 63. Ke2
{[%clk 0:00:21.9]} 63... Kxa5 {[%clk 0:00:13.6]} 64. Kd1 {[%clk 0:00:23.8]}
64... Kb4 {[%clk 0:00:15.5]} 65. Kc1 {[%clk 0:00:25.7]} 65... Ka3 {[%clk
0:00:17.4]} 66. Kb1 {[%clk 0:00:26.3]} 66... a5 {[%clk 0:00:19.3]} 67. Ka1
{[%clk 0:00:23.7]} 67... a4 {[%clk 0:00:21.2]} 68. Kb1 {[%clk 0:00:22.5]} 68...
Kb3 {[%clk 0:00:23.1]} 69. Ka1 {[%clk 0:00:23.3]} 69... a3 {[%clk 0:00:25]} 70.
Kb1 {[%clk 0:00:24.4]} 70... a2+ {[%clk 0:00:26.9]} 71. Ka1 {[%clk 0:00:25.6]}
71... Ka3 {[%clk 0:00:28.8]} 1/2-1/2

[Event "*** Titled Tuesday Blitz"]
[Site "Chess.com"]
[Date "2018.08.07"]
[Round "10"]
[White "Mikhail_Golubev"]
[Black "Slovak_fighter2000"]
[Result "1-0"]
[WhiteElo "2457"]
[BlackElo "2399"]
[TimeControl "180+2"]
[EndTime "15:22:54 PDT"]
[Termination "Mikhail_Golubev won by resignation"]

1. e4 {[%clk 0:03:01.9]} 1... e6 {[%clk 0:03:00.9]} 2. d4 {[%clk 0:03:01.9]}
2... d5 {[%clk 0:03:02.8]} 3. Nc3 {[%clk 0:03:02.7]} 3... Nf6 {[%clk 0:03:03.6]}
4. Bg5 {[%clk 0:03:02.7]} 4... Be7 {[%clk 0:03:04.3]} 5. e5 {[%clk 0:03:02.8]}
5... Nfd7 {[%clk 0:03:05.8]} 6. h4 {[%clk 0:03:02.9]} 6... h6 {[%clk 0:03:06.7]}
7. Bxe7 {[%clk 0:02:54.6]} 7... Qxe7 {[%clk 0:03:08.6]} 8. Qg4 {[%clk
0:02:55.4]} 8... O-O {[%clk 0:03:09.2]} 9. f4 {[%clk 0:02:39.7]} 9... c5 {[%clk
0:03:08.3]} 10. dxc5 {[%clk 0:02:37.1]} 10... f6 {[%clk 0:03:08.2]} 11. exf6
{[%clk 0:02:32.7]} 11... Qxf6 {[%clk 0:03:06.6]} 12. Nh3 {[%clk 0:01:40]} 12...
Nxc5 {[%clk 0:03:04]} 13. O-O-O {[%clk 0:01:39.3]} 13... Nc6 {[%clk 0:02:58.4]}
14. Qe2 {[%clk 0:01:26.8]} 14... b6 {[%clk 0:02:44.5]} 15. g4 {[%clk 0:01:27.1]}
15... Ba6 {[%clk 0:02:24.8]} 16. Qg2 {[%clk 0:01:27.9]} 16... Bxf1 {[%clk
0:02:24.4]} 17. Rhxf1 {[%clk 0:01:24.8]} 17... Qxh4 {[%clk 0:02:18.1]} 18. g5
{[%clk 0:01:19.8]} 18... hxg5 {[%clk 0:01:52.3]} 19. Nxg5 {[%clk 0:01:19.7]}
19... Rxf4 {[%clk 0:01:37.9]} 20. Rh1 {[%clk 0:01:16.8]} 20... Rg4 {[%clk
0:01:30.8]} 21. Rxh4 {[%clk 0:00:57.8]} 21... Rxg2 {[%clk 0:01:31.5]} 22. Rdh1
{[%clk 0:00:57.4]} 22... Rxg5 {[%clk 0:01:23.6]} 23. Rh8+ {[%clk 0:00:57.3]}
23... Kf7 {[%clk 0:01:25.5]} 24. Rxa8 {[%clk 0:00:57.6]} 24... Rg2 {[%clk
0:01:22.6]} 25. Rf1+ {[%clk 0:00:56.5]} 25... Ke7 {[%clk 0:01:23.1]} 26. a3
{[%clk 0:00:51.6]} 26... Nd4 {[%clk 0:01:23.4]} 27. Rxa7+ {[%clk 0:00:49.5]}
27... Kd6 {[%clk 0:01:24.9]} 28. Kb1 {[%clk 0:00:42.3]} 28... Nxc2 {[%clk
0:01:21.4]} 29. Rff7 {[%clk 0:00:40.1]} 29... d4 {[%clk 0:01:13.7]} 30. Rxg7
{[%clk 0:00:36.2]} 30... Rxg7 {[%clk 0:01:10.5]} 31. Rxg7 {[%clk 0:00:36.4]}
31... Nxa3+ {[%clk 0:01:11.2]} 32. bxa3 {[%clk 0:00:32.6]} 32... dxc3 {[%clk
0:01:11.7]} 33. Kc2 {[%clk 0:00:33.5]} 33... Ne4 {[%clk 0:01:10.8]} 34. Kd3
{[%clk 0:00:33.1]} 34... Ke5 {[%clk 0:01:05.2]} 35. Rh7 {[%clk 0:00:30.9]} 35...
c2 {[%clk 0:01:00]} 36. Rh5+ {[%clk 0:00:26.1]} 36... Kd6 {[%clk 0:00:59]} 37.
Kxc2 {[%clk 0:00:26.5]} 37... Nc5 {[%clk 0:00:58.2]} 38. Kc3 {[%clk 0:00:24]}
38... Kc6 {[%clk 0:00:58]} 39. Kb4 {[%clk 0:00:17.5]} 39... Nd3+ {[%clk
0:00:57.4]} 40. Kc4 {[%clk 0:00:18.3]} 40... Nc5 {[%clk 0:00:59.3]} 41. Rh6
{[%clk 0:00:17.3]} 41... Kd6 {[%clk 0:00:50.5]} 42. Kb5 {[%clk 0:00:16.9]} 42...
Nd7 {[%clk 0:00:51.9]} 43. Rh1 {[%clk 0:00:15.8]} 43... e5 {[%clk 0:00:46.4]}
44. Rd1+ {[%clk 0:00:16.2]} 44... Kc7 {[%clk 0:00:47.4]} 45. Rc1+ {[%clk
0:00:16.4]} 45... Kd6 {[%clk 0:00:29.6]} 46. Rc6+ {[%clk 0:00:15.8]} 46... Kd5
{[%clk 0:00:30.5]} 47. Rc1 {[%clk 0:00:12.4]} 47... Kd6 {[%clk 0:00:30.2]} 48.
Rd1+ {[%clk 0:00:12.8]} 48... Kc7 {[%clk 0:00:31.1]} 49. Rd2 {[%clk 0:00:09]}
49... Nc5 {[%clk 0:00:21.8]} 50. Rd5 {[%clk 0:00:09.1]} 50... e4 {[%clk
0:00:20.9]} 51. Re5 {[%clk 0:00:08.6]} 51... Kd6 {[%clk 0:00:20.2]} 52. Re8
{[%clk 0:00:09.2]} 52... Nd7 {[%clk 0:00:21.1]} 53. Rxe4 {[%clk 0:00:08.4]}
53... Kc7 {[%clk 0:00:21.5]} 54. Re7 {[%clk 0:00:08.5]} 54... Kd6 {[%clk
0:00:21]} 55. Rh7 {[%clk 0:00:09]} 55... Kc7 {[%clk 0:00:20.6]} 56. Rg7 {[%clk
0:00:09.5]} 56... Kd6 {[%clk 0:00:21.8]} 57. Rh7 {[%clk 0:00:10.7]} 57... Kc7
{[%clk 0:00:23.1]} 58. a4 {[%clk 0:00:11.6]} 58... Kd6 {[%clk 0:00:23.8]} 59.
Rh6+ {[%clk 0:00:12.1]} 59... Kc7 {[%clk 0:00:24.9]} 60. Rc6+ {[%clk 0:00:12.6]}
60... Kb7 {[%clk 0:00:25.3]} 61. Rc1 {[%clk 0:00:12.8]} 61... Nf6 {[%clk
0:00:16.2]} 62. Rd1 {[%clk 0:00:10.7]} 62... Kc7 {[%clk 0:00:13.7]} 63. Rg1
{[%clk 0:00:10.8]} 63... Nd7 {[%clk 0:00:10.6]} 64. Rg7 {[%clk 0:00:11]} 64...
Kd6 {[%clk 0:00:11.5]} 65. Rg6+ {[%clk 0:00:11.6]} 65... Kc7 {[%clk 0:00:12.6]}
66. Rh6 {[%clk 0:00:12]} 66... Kb7 {[%clk 0:00:13.4]} 67. Rc6 {[%clk 0:00:12]}
67... Kb8 {[%clk 0:00:10.6]} 68. Ka6 {[%clk 0:00:12.6]} 68... Nc5+ {[%clk
0:00:08.3]} 69. Kxb6 {[%clk 0:00:13]} 69... Nxa4+ {[%clk 0:00:09.5]} 70. Kb5
{[%clk 0:00:13.6]} 70... Nb2 {[%clk 0:00:08.7]} 71. Rd6 {[%clk 0:00:13.5]} 71...
Kc7 {[%clk 0:00:08.1]} 72. Rd2 {[%clk 0:00:13.1]} 1-0

[Event "*** Titled Tuesday Blitz"]
[Site "Chess.com"]
[Date "2018.08.07"]
[Round "10"]
[White "Korchmar_Vasiliy"]
[Black "gena217"]
[Result "1-0"]
[WhiteElo "2646"]
[BlackElo "2727"]
[TimeControl "180+2"]
[EndTime "15:23:07 PDT"]
[Termination "Korchmar_Vasiliy won by resignation"]

1. d4 {[%clk 0:03:01.5]} 1... Nf6 {[%clk 0:03:00.2]} 2. Nf3 {[%clk 0:03:02.5]}
2... e6 {[%clk 0:03:01]} 3. Bf4 {[%clk 0:03:03.2]} 3... d5 {[%clk 0:03:00.9]} 4.
e3 {[%clk 0:03:04.5]} 4... c5 {[%clk 0:03:02.4]} 5. Nbd2 {[%clk 0:03:04.2]} 5...
Nc6 {[%clk 0:03:03.6]} 6. c3 {[%clk 0:03:05]} 6... Bd6 {[%clk 0:03:05.1]} 7. Bg3
{[%clk 0:03:05.7]} 7... O-O {[%clk 0:03:05.9]} 8. Bd3 {[%clk 0:03:07.2]} 8... b6
{[%clk 0:03:05.9]} 9. Qe2 {[%clk 0:03:07.9]} 9... Bb7 {[%clk 0:03:07]} 10. Rd1
{[%clk 0:03:08.6]} 10... Re8 {[%clk 0:03:08.5]} 11. e4 {[%clk 0:03:05.4]} 11...
Be7 {[%clk 0:03:08.9]} 12. e5 {[%clk 0:03:05.9]} 12... Nh5 {[%clk 0:03:09.8]}
13. a3 {[%clk 0:03:05.2]} 13... f5 {[%clk 0:03:04.7]} 14. exf6 {[%clk
0:03:03.7]} 14... Bxf6 {[%clk 0:03:05.4]} 15. Ne5 {[%clk 0:03:01.4]} 15... g6
{[%clk 0:02:58.1]} 16. Ndf3 {[%clk 0:02:52.2]} 16... cxd4 {[%clk 0:02:05.4]} 17.
cxd4 {[%clk 0:02:41.8]} 17... Rc8 {[%clk 0:02:05.7]} 18. O-O {[%clk 0:02:39.3]}
18... Nxg3 {[%clk 0:02:05.7]} 19. hxg3 {[%clk 0:02:40.7]} 19... Bg7 {[%clk
0:01:43.7]} 20. Rfe1 {[%clk 0:02:35.1]} 20... Rc7 {[%clk 0:01:23.2]} 21. Bb5
{[%clk 0:02:28.8]} 21... Ree7 {[%clk 0:01:22.8]} 22. Bxc6 {[%clk 0:02:14.2]}
22... Bxc6 {[%clk 0:01:24.7]} 23. Qe3 {[%clk 0:02:05.5]} 23... Ba4 {[%clk
0:01:24.4]} 24. Rc1 {[%clk 0:01:57.8]} 24... Qe8 {[%clk 0:01:15.3]} 25. b3
{[%clk 0:01:49.4]} 25... Bb5 {[%clk 0:01:15]} 26. g4 {[%clk 0:01:48]} 26... h6
{[%clk 0:01:09.2]} 27. g5 {[%clk 0:01:47.5]} 27... h5 {[%clk 0:01:03]} 28. Nh4
{[%clk 0:01:48]} 28... Bxe5 {[%clk 0:00:59.5]} 29. Qxe5 {[%clk 0:01:49.9]} 29...
Rxc1 {[%clk 0:00:59.6]} 30. Rxc1 {[%clk 0:01:50.7]} 30... Bd3 {[%clk 0:01:00.9]}
31. Rc3 {[%clk 0:01:44.3]} 31... Be4 {[%clk 0:01:01.1]} 32. f3 {[%clk
0:01:43.3]} 32... Bf5 {[%clk 0:01:01.8]} 33. Kh2 {[%clk 0:01:35.5]} 33... Qd8
{[%clk 0:01:02]} 34. b4 {[%clk 0:01:30.7]} 34... Rf7 {[%clk 0:00:58.9]} 35. f4
{[%clk 0:01:21.6]} 35... Qe8 {[%clk 0:00:56.5]} 36. Rc7 {[%clk 0:01:14.9]} 36...
Be4 {[%clk 0:00:55.1]} 37. Rc1 {[%clk 0:00:51]} 37... Rd7 {[%clk 0:00:50]} 38.
b5 {[%clk 0:00:46.7]} 38... Rg7 {[%clk 0:00:47.1]} 39. a4 {[%clk 0:00:47]} 39...
Kh7 {[%clk 0:00:47.9]} 40. Kg3 {[%clk 0:00:45.5]} 40... Qe7 {[%clk 0:00:45.9]}
41. Rc6 {[%clk 0:00:41.5]} 41... Qa3+ {[%clk 0:00:44.2]} 42. Kh2 {[%clk
0:00:42.6]} 42... Qe3 {[%clk 0:00:28.8]} 43. Rc7 {[%clk 0:00:29.2]} 43... Rxc7
{[%clk 0:00:28.8]} 44. Qxc7+ {[%clk 0:00:31.1]} 44... Kg8 {[%clk 0:00:30.4]} 45.
Qb8+ {[%clk 0:00:31.5]} 45... Kg7 {[%clk 0:00:30.4]} 46. Qxa7+ {[%clk 0:00:32]}
46... Kg8 {[%clk 0:00:32.3]} 47. Qb8+ {[%clk 0:00:31.6]} 47... Kh7 {[%clk
0:00:32.5]} 48. Qc7+ {[%clk 0:00:31.7]} 48... Kg8 {[%clk 0:00:33.1]} 49. Qd8+
{[%clk 0:00:30.1]} 49... Kg7 {[%clk 0:00:32.6]} 50. Qf6+ {[%clk 0:00:30.1]}
50... Kh7 {[%clk 0:00:34.1]} 51. Qf7+ {[%clk 0:00:27.5]} 51... Kh8 {[%clk
0:00:34.5]} 52. a5 {[%clk 0:00:07.1]} 52... Qf2 {[%clk 0:00:31.6]} 53. Qf6+
{[%clk 0:00:07.6]} 53... Kh7 {[%clk 0:00:32.3]} 54. Qf7+ {[%clk 0:00:08]} 54...
Kh8 {[%clk 0:00:33.4]} 55. Qf8+ {[%clk 0:00:05]} 55... Kh7 {[%clk 0:00:34.3]}
56. Nxg6 {[%clk 0:00:04.7]} 56... Kxg6 {[%clk 0:00:24.6]} 57. Qf6+ {[%clk
0:00:03.8]} 57... Kh7 {[%clk 0:00:25.5]} 58. Qf7+ {[%clk 0:00:04.8]} 58... Kh8
{[%clk 0:00:25.9]} 59. Qf8+ {[%clk 0:00:05.3]} 59... Kh7 {[%clk 0:00:27.2]} 60.
Qf7+ {[%clk 0:00:04.9]} 60... Kh8 {[%clk 0:00:28.2]} 61. Qf6+ {[%clk 0:00:06.1]}
61... Kh7 {[%clk 0:00:27.9]} 62. Qf7+ {[%clk 0:00:03.6]} 62... Kh8 {[%clk
0:00:29]} 63. Qe8+ {[%clk 0:00:04.8]} 63... Kg7 {[%clk 0:00:29.2]} 64. Qe7+
{[%clk 0:00:05.6]} 64... Kh8 {[%clk 0:00:30.2]} 65. Qf6+ {[%clk 0:00:06.5]}
65... Kh7 {[%clk 0:00:31]} 66. Qe7+ {[%clk 0:00:06.8]} 66... Kh8 {[%clk
0:00:31.4]} 67. Qf6+ {[%clk 0:00:04.4]} 67... Kh7 {[%clk 0:00:32.4]} 68. g6+
{[%clk 0:00:05.8]} 68... Bxg6 {[%clk 0:00:32.4]} 69. axb6 {[%clk 0:00:06.4]}
69... h4 {[%clk 0:00:26.9]} 70. Qe7+ {[%clk 0:00:03.8]} 70... Kh8 {[%clk
0:00:11.5]} 71. Qg5 {[%clk 0:00:04.9]} 71... Be4 {[%clk 0:00:03.7]} 72. b7
{[%clk 0:00:05.9]} 1-0